Cogmind - Beta 16.1 @@@ ROGUE MODE // 2026.04.04 @ 18:52:22 // Winter2022/Polymind Player: the Result: Destroyed by as-48503 with Assembled Rifle Performance ------------- Evolutions (0) 0 Regions Visited (2) 400 Robots Destroyed (7) 35 Value Destroyed (67) 67 Prototype IDs (0) 0 Alien Tech Used (0) 0 Bonus (1440) 1440 TOTAL SCORE: 1292 Bonus ------- Polymind Skill 1450 Friendly Fire -10 Cogmind --------- Core Integrity 0/250 Matter 0/0 Energy 58/100 System Corruption 0% Temperature Cool (0) Movement Core (50) Location -10/Mines Parts ------- > --- POWER (1) -------- (None) > --- PROPULSION (2) --- (None) > --- UTILITY (0) ------ (None) > --- WEAPON (1) ------- (None) > --- INVENTORY (0) ---- (None) Peak State ------------ > --- POWER ------------ Light Ion Engine > --- PROPULSION ------- Flight Unit Flight Unit > --- UTILITY ---------- (None) > --- WEAPON ----------- Light Assault Rifle > --- INVENTORY -------- (None) [Rating: 4] Favorites ----------- Power Light Ion Engine Engine Light Ion Engine Propulsion Flight Unit Flight Unit Flight Unit Utility None Weapon Light Assault Rifle Ballistic Gun Light Assault Rifle Build | -11 -10 -10 ------- Run | Yrd Mat Min Slots Evolved . | . . . Power . | . . . Propulsion . | . . . Utility . | . . . Weapon . | . . . Parts Attached . | . . . Power . | . . . Engine . | . . . Core . | . . . Reactor . | . . . Propulsion . | . . . Treads . | . . . Leg . | . . . Wheel . | . . . Hover . | . . . Flight . | . . . Utility . | . . . Device . | . . . Storage . | . . . Processor . | . . . Hackware . | . . . Protection . | . . . Artifact . | . . . Weapon . | . . . Energy Gun . | . . . Energy Cannon . | . . . Ballistic Gun . | . . . Ballistic Cannon . | . . . Launcher . | . . . Special Weapon . | . . . Impact Weapon . | . . . Slashing Weapon . | . . . Piercing Weapon . | . . . Special Melee Weapon . | . . . Unidentified Prototypes . | . . . Parts Lost 4 | . . 4 Power 1 | . . 1 Propulsion 2 | . . 2 Utility . | . . . Weapon 1 | . . 1 Highest Loss Streak 2 | . . 2 To Critical Strikes . | . . . Average Backups . | . . . Power . | . . . Propulsion . | . . . Utility . | . . . Weapon . | . . . Tool/Special . | . . . Unused Backups . | . . . Power . | . . . Propulsion . | . . . Utility . | . . . Weapon . | . . . Tool/Special . | . . . Average Slot Usage (%) 66 | . 75 57 Engine 16 | . 18 13 Flight 33 | . 37 28 Ballistic Gun 17 | . 18 15 Peak Build Rating 4 | . 4 4 Average Rating 2 | . 3 2 On Entrance 1 | . . 4 Avg Prop Armor Cover (%) . | . . . Naked Turns 76 | . 60 16 Heaviest Build 4 | . 4 4 Greatest Support 8 | 3 8 8 Greatest Overweight (x) . | . . . Average Overweight (x) . | . . . Largest Inventory Capacity . | . . . Average Capacity . | . . . Most Carried . | . . . Average Carried . | . . . Final Capacity . | . . . Final Carried . | . . . Class Distribution -------------------- 84% | Swarmer 15% | Cogmind Dominant Class ---------------- Swarmer | -10/Materials Swarmer | -10/Mines Resources | -11 -10 -10 ----------- Run | Yrd Mat Min Matter Collected 51 | . 37 14 Remotely . | . . . Salvage Created 141 | . 113 28 Parts 14 | . 14 . Haulers Intercepted . | . . . Recyclers Shooed . | . . . Parts Field Recycled . | . . . Retrieved Matter . | . . . Parts Self-Destructed . | . . . Prevented . | . . . Parts Restored . | . . . Kills | -11 -10 -10 ------- Run | Yrd Mat Min Combat Hostiles Destroyed 6 | . 5 1 Guns 6 | . 5 1 Classes Destroyed 4 | . 3 1 Worker 1 | . 1 . Watcher 1 | . 1 . Swarmer 5 | . 5 . Assembled 1 | . . 1 Best Kill Streak 3 | . 3 1 Combat Bots Only 3 | . 3 1 Max Kills in Single Turn 1 | . 1 1 Gunslinging . | . . . Exploded . | . . . Melee . | . . . Uniques/NPCs Destroyed . | . . . Combat | -11 -10 -10 -------- Run | Yrd Mat Min Hostile Shots Fired 72 | . 24 48 Missed 34 | . 9 25 Hits 38 | . 15 23 Melee 2 | . . 2 Projectile 36 | . 15 21 Damage Taken 444 | . 120 324 Core 257 | . 78 179 Absorbed by Shields . | . . . Regen/Repaired (Parts) 5 | . 5 . Core Remaining (%) 100 | 100 . . Volleys Fired 55 | . 41 14 Largest 1 | . 1 1 Hottest 20 | . 20 20 Shots Fired 55 | . 41 14 Gun 55 | . 41 14 Cannon . | . . . Launcher . | . . . Special . | . . . Kinetic 55 | . 41 14 Thermal . | . . . Explosive . | . . . Electromagnetic . | . . . Robot Hit Streak 8 | . 8 5 Robot Miss Streak 3 | . 3 3 Penetration Max . | . . . Secondary Targets . | . . . Shots Hit Robots 33 | . 24 9 Core Hits 14 | . 12 2 Critical Kills . | . . . Critical Parts Destroyed . | . . . Critical Strikes . | . . . Melee Attacks . | . . . Impact . | . . . Slashing . | . . . Piercing . | . . . Sneak Attacks . | . . . Combat Hostiles . | . . . Follow-up Attacks . | . . . Damage Inflicted 296 | . 211 85 Guns 296 | . 211 85 Cannons . | . . . Explosions . | . . . Melee . | . . . Ramming . | . . . Kinetic 296 | . 211 85 Thermal . | . . . Explosive . | . . . Electromagnetic . | . . . Impact . | . . . Slashing . | . . . Piercing . | . . . Highest Corruption . | . . . Average Corruption . | . . . Corruption Purged . | . . . Corruption Blocked . | . . . Overload Shots . | . . . Overflow Damage . | . . . Projectiles . | . . . Explosions . | . . . Melee . | . . . Knockbacks . | . . . Impact . | . . . Kinetic . | . . . Secondary . | . . . Self-Inflicted Damage . | . . . Shots . | . . . Rammed . | . . . Targets Rammed . | . . . Kicked . | . . . Crushed . | . . . Highest Temperature 31 | . 31 12 Average Temperature 10 | . 11 6 Received Heat Transfer 57 | . . 57 Siege Activations . | . . . Martial Activations . | . . . Shielding Activations . | . . . Robots Disrupted . | . . . Combat Hostiles . | . . . Robots Corrupted . | . . . Combat Hostiles . | . . . Parts Fried . | . . . Impact Corruptions . | . . . Robots Melted . | . . . Combat Hostiles . | . . . Parts Melted . | . . . Heat Transferred . | . . . Parts Sabotaged . | . . . Parts Stolen . | . . . Parts Stripped . | . . . Power Chain Reactions . | . . . Alert | -11 -10 -10 ------- Run | Yrd Mat Min Maximum Alert Level . | . . . Low Security (%) 100 | 100 100 100 Level 1 . | . . . Level 2 . | . . . Level 3 . | . . . Level 4 . | . . . Level 5 . | . . . High Security . | . . . Max Security . | . . . Peak Influence 87 | . 87 45 Initial 25 | . . 25 Average 22 | . 37 6 Influence Increases 227 | . 167 60 Destroy 0b10 Robot/C 100 | . 100 . Destroy 0b10 Robot/NC 10 | . 10 . Destroy Leader 12 | . 12 . Partial Spotted 45 | . 30 15 Lose Combat Pursuer 60 | . 15 45 Influence Decreases 202 | . 100 102 Entered New Map 42 | . . 42 Time Decay 135 | . 100 35 Lost Part 10 | . . 10 Lost Ally 15 | . . 15 Squads Dispatched 2 | . 2 . Investigation 1 | . 1 . Extermination . | . . . Reinforcement 1 | . 1 . Assault . | . . . Garrison . | . . . Intercept . | . . . Searches Triggered . | . . . Construction Impeded . | . . . Haulers Reinforced . | . . . Active Scanning Responses . | . . . Cargo Convoy Interrupts . | . . . Stealth | -11 -10 -10 --------- Run | Yrd Mat Min Distress Signals 2 | . 2 . Communications Jammed . | . . . Distress Signals . | . . . Times Spotted 41 | . 15 26 Peak Tracking Total 20 | . 5 20 Tactical Retreats 5 | . 1 4 Traps | -11 -10 -10 ------- Run | Yrd Mat Min Traps Triggered . | . . . Indirectly . | . . . Trap Hack Attempts . | . . . Triggered . | . . . Disarmed . | . . . Reprogrammed . | . . . Reused . | . . . Traps Extracted . | . . . Installed . | . . . Triggered . | . . . Machines | -11 -10 -10 ---------- Run | Yrd Mat Min Machines Disabled . | . . . Max in Single Turn . | . . . Machines Repaired . | . . . Machines Dismantled . | . . . Machines Sabotaged . | . . . Overloaded Fab Kills . | . . . Hacking | -11 -10 -10 --------- Run | Yrd Mat Min Machines Accessed 2 | . 1 1 Terminals . | . . . Fabricators . | . . . Repair Stations 1 | . 1 . Recycling Units . | . . . Scanalyzers . | . . . Garrison Access . | . . . Total Hacks 2 | . 1 1 Successful 2 | . 1 1 Failed . | . . . Catastrophic . | . . . Database Lockouts . | . . . Manual 1 | . 1 . Terminals . | . . . Fabricators . | . . . Repair Stations 1 | . 1 . Recycling Units . | . . . Scanalyzers . | . . . Garrison Access . | . . . Terminal Hacks 1 | . . 1 Open Door 1 | . . 1 Fabricator Hacks . | . . . Repair Station Hacks . | . . . Recycling Unit Hacks . | . . . Scanalyzer . | . . . Garrison Access Hacks . | . . . Unauthorized Hacks 1 | . 1 . Terminals . | . . . Fabricators . | . . . Repair Stations 1 | . 1 . Patch 1 | . 1 . Recycling Units . | . . . Scanalyzers . | . . . Garrison Access . | . . . Data Cores Recovered . | . . . Used . | . . . Hacking Detections . | . . . Full Trace Events . | . . . Feedback Events . | . . . Feedback Blocked . | . . . Robot Schematics Acquired . | . . . Robots Built . | . . . Authchips . | . . . Time . | . . . Total Robot Build Rating . | . . . Part Schematics Acquired . | . . . Parts Built . | . . . Authchips . | . . . Time . | . . . Total Part Build Rating . | . . . Part Studies Acquired . | . . . Parts Repaired . | . . . Time . | . . . Parts Recycled . | . . . Recycled Matter . | . . . Retrieved Matter . | . . . Retrieved Components . | . . . Parts Scanalyzed . | . . . Part Schematics Acquired . | . . . Parts Damaged . | . . . Bothacking | -11 -10 -10 ------------ Run | Yrd Mat Min Used RIF Installer . | . . . Robots Hacked 1 | . 1 . Non-combat . | . . . Combat 1 | . 1 . Robot Hacks Applied 1 | . 1 . find_shortcuts 1 | . 1 . Relay Couplers Released . | . . . Fabnet Peak Effective % . | . . . Robots Rewired . | . . . Allies Hacked . | . . . Hacks Repelled . | . . . Allies | -11 -10 -10 -------- Run | Yrd Mat Min Total Allies 1 | . . 1 Largest Group 1 | . . 1 Highest-Rated Group 31 | . . 31 Highest-Rated Ally 31 | . . 31 Total Orders . | . . . Ally Attacks 4 | . . 4 Total Damage 42 | . . 42 Kills 2 | . . 2 Allies Corrupted . | . . . Allies Melted . | . . . Intel | -11 -10 -10 ------- Run | Yrd Mat Min Active Infowar (turns) . | . . . Robot Analysis Total 1 | . 1 . Derelict Logs Recovered 1 | . . 1 Drone Launches . | . . . Drone Recoveries . | . . . Exploration | -11 -10 -10 ------------- Run | Yrd Mat Min Turns Passed 516 | 10 272 234 Spaces Moved 963 | 19 469 475 Core 167 | 19 116 32 Treads . | . . . Legs . | . . . Wheels . | . . . Hover . | . . . Flight 796 | . 353 443 Fastest Speed 37 | 50 37 37 Average Speed 40 | 50 40 40 Slowest Speed 50 | 50 50 50 Overloaded Moves . | . . . Propulsion Burnouts . | . . . Robots Hopped 13 | . 2 11 Potential Cave-ins 6 | . . 6 Cave-ins Triggered . | . . . Exploration Rate (%) 45 | 3 68 65 Regions Visited 2 Branch Regions 1 Pre-discovered Areas . | . . . Known Exits Taken . | . . . Unknown Exits Taken 2 | 1 1 . Scrap Searched 1 | . . 1 Spaces Dug . | . . . Terrain Destroyed . | . . . Melee . | . . . Projectile . | . . . AOE . | . . . Terrain Rammed . | . . . Walls Destroyed . | . . . Machines Disabled . | . . . Actions | -11 -10 -10 --------- Run | Yrd Mat Min Total 1029 | 18 516 495 Wait 26 | . 9 17 Move 936 | 18 464 454 Hop 12 | . 2 10 Pick Up . | . . . Fast Attach . | . . . Attach . | . . . Detach . | . . . Swap . | . . . Drop . | . . . Fire 55 | . 41 14 Melee . | . . . Ram . | . . . Kick . | . . . Crush . | . . . Escape Stasis . | . . . Rewire . | . . . Trap . | . . . Miscellaneous . | . . . Route ------- -11/Scrapyard -10/Materials (discovered 3 exits: *Mat x2 / *Min) -10/Mines (discovered 2 exits: *Mat x2) History --------- Turn | Location | Event 3 | -11/Scrapyard | Discovered new exit (range 15) 11 | -11/Scrapyard | Entered Materials 36 | -10/Materials | Discovered new exit (range 4) 79 | -10/Materials | Discovered new exit (range 7) 198 | -10/Materials | Discovered new exit (range 16) 283 | -10/Materials | Entered Mines 284 | -10/Mines | Assembled infested the area 286 | -10/Mines | Met a Derelict shopkeep closing up shop 291 | -10/Mines | Received a Mining Laser from a helpful Derelict 316 | -10/Mines | Core integrity fell below 50% 358 | -10/Mines | Discovered new exit (range 8) 438 | -10/Mines | Identified exit to Materials 475 | -10/Mines | Core integrity fell below 20% 517 | -10/Mines | Destroyed by as-48503 with Assembled Rifle Last Messages --------------- 00300_ as-76186 destroyed. 00302_ as-31004 destroyed. 00302_ as-24491 destroyed. 00303_ AD-DUO(g) destroyed. 00310_ Acquired 16 Protomatter. 00312_ Acquired 15 Protomatter. 00312_ Acquired 9 matter. 00313_ Flight Unit destroyed. 00347_ K-01 Serf collects debris. 00358_ EXIT=FOUND 00404_ Lgt. Ion Engine destroyed. 00421_ Lgt. Assault Rifle destroyed. 00438_ Acquired derelict log, extracted data. Loading 1 Mines exit... 00468_ K-01 Serf collects debris. 00481_ Acquired 5 matter. 00501_ Flight Unit destroyed. 00501_ Lost control of S-10 Pest. 00503_ The unstable cave ceiling collapses. 00508_ Acquired 4 Protomatter. Map ----- +----------------------------------------------------+ | "] *# #?????????????????????????????## | | "! #???????????????????????????????## | | "! #?????????????????????????##?????# | | "! !#X #### #???????????????????## ????## # | | ????# ########??????????### ????## ## | | ???## ####### " ##????????? ?????# ##? | | ??## ##???# #???????? ???## #?? | | ??# #??## ##??????? #?## #?? | | ??# #### #?????? ## ##?? | | ??##### [ #?????? ##??? | | ??????# %### #??????? ##### | | ??????#%!#?# ##????????#### | | ?????## ### #???????????## | | ?????# ### ##???????????## ## | | ????## % ### # #????????????#### ##? | | ????# ## # % #???????????????## #? | | ????# #?# #????????????????## #? | | ????# % ##### # #?????????????????## ##? | | ????## = |% ## = # #??????????????????## ##?? | | ?????# # # #????????????????##### #??? | | ?????# # # #????????????????# #??? | | ?????## # # #?#########??????# ### #??? | | ??????## # #?# #??????# #?# #??? | | ??????## # # %# #?# !!! #??????# #?# #??? | | ?????## ## a ### =! #????### ### ?? | | ????## #### % @!=%! #???## = ##### == | | ????# ##??## ### ! #??## !%| ##?#*% | | ????# ##????## ! ###?# #??# ##?## | | ????## ##?????## =%###### #??# ##?? | | ?????# #??????###!=% #?#######??# ##? | | ?????# #????????# ### #??????????## #? | | ?????## ##????????# #?# #????#####??# ## #? | | ??????############# ### #???## #### ##?# #? | | ????????# ## #??## ## ##??# # | | ????????# % ## #??# ##??# # | | ????????# """ """ ## #?## ##?? # | | ????????# """ """ ##=### #??? # | | ??????????? """ """ ##%##= ###### ## | | ??????????? ##=!%= ##?????# ##? | | ????????????############### #???????######?? | | ??????????????????????????## ##??????????????? | | ???????????????????????????#######???????????????? | | ?????????????????????????????????????????????????? | | ?????????????????????????????????????????????????? | | ?????????????????????????????????????????????????? | | | | | | | | | | | +----------------------------------------------------+ Best States ------------- Heat Dissipation 25 Energy Generation 15 Energy Capacity 100 Matter Stores 100 Matter Capacity 100 Sight Range 16 Terrain Scan Density 10 Evasion (%) 62 Item Schematics ----------------- None Robot Schematics ------------------ None Fabricated ------------ Nothing Repaired ---------- Nothing Studied --------- None Alien Tech Used ----------------- None Achievements -------------- None Challenges ------------ None Polymind | -11 -10 -10 ---------- Run | Yrd Mat Min Hosts 1 | . 1 . Combat Hostiles 1 | . 1 . Allies . | . . . Unique Host Classes 1 | . 1 . Average Host Suspicion 83 | . 100 67 Unsuspicious Activity 40 | . . 40 Returns to Shadow . | . . . Fuzzy Dispatches . | . . . Protomatter Created 109 | . 9 100 Used 6 | . 6 . Decayed 5 | . . 5 Highest Spend 6 | . 6 . Top 5 Hosts by Kills: S-10 Pest (-10/Materials: 6) Game ------ Seed ConceptArcMembrane Manual? 0 Play Time 00:10:00 Cumulative 691.1 hours Start 2026.04.04 @ 18:45:41 End 2026.04.04 @ 18:52:22 Sessions 1 Manual Loads 0 Difficulty Rogue Special Mode Winter2022/Polymind Game No. 383 Rogue 383 Adventurer 0 Explorer 0 Win Type - Total 30 Types 15/1/6/2/1/1/1/2/1/0 Lore% 93 Gallery% 87 Achievement% 78 Wizard Run 0 Options --------- Layout 0 ASCII 0 Keyboard 0 Movement Mouse Keybinds 0 Fullscreen 2 Font 24/Smallcaps Map View 76x50 Zoom Use 0% Tactical HUD 1 Map Filters NONE Filters NONE Steam 1 RUN: 80da10b6-49fb-450b-829f-489cbfb3721f